fUST/lending_fUST_20250607
["ID","MTS","AMOUNT","RATE_DAILY","PERIOD"]
[364921334,1749300653724,-9931.75,0.00021095,2]
[364921335,1749300653734,-3453.14,0.00021095,2]
[364921336,1749300653744,-440.0,0.00021095,2]
[364921337,1749300653755,-440.0,0.00021095,2]
[364921338,1749300653765,-3871.85,0.00021095,2]
[364921339,1749300653775,-3264.02,0.00021095,2]
[364921340,1749300653786,-440.0,0.00021095,2]
[364921341,1749300653796,-609.82,0.00021095,2]
[364921342,1749300653806,-797.01,0.00021095,2]
[364921343,1749300653818,-440.0,0.00021095,2]
[364921344,1749300653899,-3300.67,0.00021095,2]
[364921345,1749300653910,-440.0,0.00021095,2]
[364921346,1749300653921,-440.0,0.00021095,2]
[364921347,1749300653931,-440.0,0.00021095,2]
[364921348,1749300653941,-151.0,0.00021095,2]
[364921349,1749300653951,-243.56,0.00021095,2]
[364921350,1749300653961,-440.0,0.00021095,2]
[364921351,1749300653970,-440.0,0.00021095,2]
[364921352,1749300653980,-533.74,0.00021095,2]
[364921353,1749300653990,-1870.46,0.00021095,2]
[364921354,1749300653999,-1404.67,0.00021095,2]
[364921355,1749300654009,-2939.08,0.00021095,2]
[364921356,1749300654019,-440.0,0.00021095,2]
[364921357,1749300654029,-1844.80616247,0.00021107,4]
[364921358,1749300654039,-503.48503408,0.00021143,2]
[364921359,1749300654048,-500.0,0.00021147,2]
[364921360,1749300654058,-268.53727862,0.00021175,2]
[364921361,1749300654070,-1210.366154,0.00021176,2]
[364921362,1749300654079,-1210.366154,0.00021176,2]
[364921363,1749300654090,-183.197886,0.00021176,2]
[364921364,1749300654100,-183.197886,0.00021176,2]
[364921365,1749300654110,-1844.80616247,0.00021279,5]
[364921366,1749300654120,-539.80823797,0.00021338,2]
[364921367,1749300654130,-500.0,0.00021338,2]
[364921368,1749300654140,-440.0,0.00021369,2]
[364921369,1749300654150,-198.96,0.00021369,2]
[364921370,1749300654160,-440.0,0.00021369,2]
[364921371,1749300654169,-440.0,0.00021369,2]
[364921372,1749300654180,-440.0,0.00021369,2]
[364921373,1749300654190,-440.0,0.00021369,2]
[364921374,1749300654200,-440.0,0.00021369,2]
[364921375,1749300654211,-320.0,0.00021369,2]
[364921376,1749300654222,-440.0,0.00021369,2]
[364921377,1749300654232,-440.0,0.00021369,2]
[364921378,1749300654242,-440.0,0.00021369,2]
[364921379,1749300654251,-457.80384565,0.00021369,2]
[364921380,1749300654261,-440.0,0.00021369,2]
[364921381,1749300654271,-440.0,0.00021369,2]
[364921382,1749300654280,-440.0,0.00021369,2]
[364921383,1749300654291,-440.0,0.00021369,2]
[364921384,1749300654301,-440.0,0.00021369,2]
[364921385,1749300654312,-440.0,0.00021369,2]
[364921386,1749300654322,-440.0,0.00021369,2]
[364921387,1749300654332,-440.0,0.00021369,2]
[364921388,1749300654342,-440.0,0.00021369,2]
[364921389,1749300654352,-795.29,0.00021369,2]
[364921390,1749300654362,-1214.15,0.00021369,2]
[364921391,1749300654372,-440.0,0.00021369,2]
[364921392,1749300654382,-517.56,0.00021369,2]
[364921393,1749300654397,-440.0,0.00021369,2]
[364921394,1749300654423,-584.65,0.00021369,2]
[364921395,1749300654445,-1313.55,0.00021369,2]
[364921396,1749300654468,-440.0,0.00021369,2]
[364921397,1749300654493,-440.0,0.00021369,2]
[364921398,1749300654515,-576.42,0.00021369,2]
[364921399,1749300654538,-440.0,0.00021369,2]
[364921400,1749300654556,-440.0,0.00021369,2]
[364921401,1749300654580,-440.0,0.00021369,2]
[364921402,1749300654601,-3803.52,0.00021369,2]
[364921403,1749300654626,-440.0,0.00021369,2]
[364921404,1749300654646,-440.0,0.00021369,2]
[364921405,1749300654668,-440.0,0.00021369,2]
[364921406,1749300654687,-1280.59,0.00021369,2]
[364921407,1749300654708,-498.0,0.00021369,2]
[364921408,1749300654723,-440.0,0.00021369,2]
[364921409,1749300654742,-440.0,0.00021369,2]
[364921410,1749300654760,-500.0,0.00021369,2]
[364921411,1749300654777,-440.0,0.00021369,2]
[364921412,1749300654793,-501.42,0.00021369,2]
[364921413,1749300654814,-708.18,0.00021369,2]
[364921414,1749300654834,-440.0,0.00021369,2]
[364921415,1749300654850,-2486.9,0.00021369,2]
[364921416,1749300654867,-1293.92,0.00021369,2]
[364921417,1749300654886,-440.0,0.00021369,2]
[364921418,1749300654903,-440.0,0.00021369,2]
[364921419,1749300654921,-861.56,0.00021369,2]
[364921420,1749300654938,-440.0,0.00021369,2]
[364921421,1749300654956,-568.04,0.00021369,2]
[364921422,1749300654975,-440.0,0.00021369,2]
[364921423,1749300654993,-440.0,0.00021369,2]
[364921424,1749300655012,-440.0,0.00021369,2]
[364921425,1749300655031,-440.0,0.00021369,2]
[364921426,1749300655048,-9931.75,0.00021369,2]
[364921427,1749300655067,-3453.14,0.00021369,2]
[364921428,1749300655084,-440.0,0.00021369,2]
[364921429,1749300655102,-440.0,0.00021369,2]
[364921430,1749300655119,-3871.85,0.00021369,2]
[364921431,1749300655140,-3264.02,0.00021369,2]
[364921432,1749300655159,-440.0,0.00021369,2]
[364921433,1749300655178,-609.82,0.00021369,2]
[364921434,1749300655194,-797.01,0.00021369,2]
[364921435,1749300655212,-440.0,0.00021369,2]
[364921436,1749300655232,-3300.67,0.00021369,2]
[364921437,1749300655249,-440.0,0.00021369,2]
[364921438,1749300655265,-440.0,0.00021369,2]
[364921439,1749300655283,-440.0,0.00021369,2]
[364921440,1749300655300,-440.0,0.00021369,2]
[364921441,1749300655412,-440.0,0.00021369,2]
[364921442,1749300655444,-533.74,0.00021369,2]
[364921443,1749300655454,-1870.46,0.00021369,2]
[364921444,1749300655464,-1404.67,0.00021369,2]
[364921445,1749300655474,-2939.08,0.00021369,2]
[364921446,1749300655484,-440.0,0.00021369,2]
[364921447,1749300655493,-1844.80616247,0.00021452,5]
[364921448,1749300655503,-158.34425131,0.00021576,2]
[364921449,1749300655513,-500.0,0.0002161,2]
[364921450,1749300655524,-500.0,0.0002161,2]
[364921451,1749300655535,-500.0,0.0002161,2]
[364921452,1749300655545,-500.0,0.0002161,2]
[364921453,1749300655554,-513.98861648,0.0002161,2]
[364921454,1749300655566,-502.60008131,0.0002161,2]
[364921455,1749300655577,-500.0,0.0002161,2]
[364921456,1749300655587,-500.0,0.0002161,2]
[364921457,1749300655597,-504.67081318,0.0002161,2]
[364921458,1749300655608,-500.0,0.0002161,2]
[364921459,1749300655618,-500.0,0.0002161,2]
[364921460,1749300655628,-600.0,0.0002161,2]
[364921461,1749300655639,-500.0,0.0002161,2]
[364921462,1749300655649,-500.0,0.0002161,2]
[364921463,1749300655659,-1844.80616247,0.00021624,5]
[364921464,1749300655669,-500.24804547,0.00021633,2]
[364921465,1749300655679,-500.0,0.00021633,2]
[364921466,1749300655689,-500.0,0.00021633,2]
[364921467,1749300655699,-500.0,0.00021633,2]
[364921468,1749300655708,-500.0,0.00021633,2]
[364921469,1749300655718,-500.0,0.00021633,2]
[364921470,1749300655728,-500.0,0.00021633,2]
[364921471,1749300655738,-290.5261177,0.00021633,2]
[364921472,1749300655748,-500.0,0.00021633,2]
[364921473,1749300655759,-500.0,0.00021633,2]
[364921474,1749300655768,-440.0,0.00021643,2]
[364921475,1749300655779,-320.0,0.00021643,2]
[364921476,1749300655789,-440.0,0.00021643,2]
[364921477,1749300655799,-440.0,0.00021643,2]
[364921478,1749300655809,-571.21138795,0.00021643,2]
[364921479,1749300655820,-440.0,0.00021643,2]
[364921480,1749300655830,-440.0,0.00021643,2]
[364921481,1749300655839,-440.0,0.00021643,2]
[364921482,1749300655848,-440.0,0.00021643,2]
[364921483,1749300655858,-440.0,0.00021643,2]
[364921484,1749300655868,-264.76314045,0.00021643,2]
[364921485,1749300655877,-440.0,0.00021643,2]
[364921486,1749300655886,-440.0,0.00021643,2]
[364921487,1749300655895,-440.0,0.00021643,2]
[364921488,1749300655906,-440.0,0.00021643,2]
[364921489,1749300655916,-795.29,0.00021643,2]
[364921490,1749300655925,-1214.15,0.00021643,2]
[364921491,1749300655936,-440.0,0.00021643,2]
[364921492,1749300655946,-517.56,0.00021643,2]
[364921493,1749300655956,-440.0,0.00021643,2]
[364921494,1749300655966,-584.65,0.00021643,2]
[364921495,1749300655975,-1313.55,0.00021643,2]
[364921496,1749300655985,-440.0,0.00021643,2]
[364921497,1749300655995,-440.0,0.00021643,2]
[364921498,1749300656006,-576.42,0.00021643,2]
[364921499,1749300656016,-440.0,0.00021643,2]
[364921500,1749300656026,-440.0,0.00021643,2]
[364921501,1749300656037,-440.0,0.00021643,2]
[364921502,1749300656047,-3803.52,0.00021643,2]
[364921503,1749300656058,-440.0,0.00021643,2]
[364921504,1749300656067,-440.0,0.00021643,2]
[364921505,1749300656078,-440.0,0.00021643,2]
[364921506,1749300656088,-1280.59,0.00021643,2]
[364921507,1749300656098,-498.0,0.00021643,2]
[364921508,1749300656108,-440.0,0.00021643,2]
[364921509,1749300656118,-440.0,0.00021643,2]
[364921510,1749300656127,-500.0,0.00021643,2]
[364921511,1749300656137,-440.0,0.00021643,2]
[364921512,1749300656148,-501.42,0.00021643,2]
[364921513,1749300656157,-708.18,0.00021643,2]
[364921514,1749300656167,-440.0,0.00021643,2]
[364921515,1749300656178,-2486.9,0.00021643,2]
[364921516,1749300656188,-1293.92,0.00021643,2]
[364921517,1749300656199,-440.0,0.00021643,2]
[364921518,1749300656208,-440.0,0.00021643,2]
[364921519,1749300656217,-861.56,0.00021643,2]
[364921520,1749300656227,-440.0,0.00021643,2]
[364921521,1749300656238,-568.04,0.00021643,2]
[364921522,1749300656249,-440.0,0.00021643,2]
[364921523,1749300656259,-440.0,0.00021643,2]
[364921524,1749300656269,-440.0,0.00021643,2]
[364921525,1749300656279,-185.05,0.00021643,2]
[364921526,1749300656290,-9931.75,0.00021643,2]
[364921527,1749300656300,-3453.14,0.00021643,2]
[364921528,1749300656310,-440.0,0.00021643,2]
[364921529,1749300656321,-440.0,0.00021643,2]
[364921530,1749300656331,-3871.85,0.00021643,2]
[364921531,1749300656342,-3264.02,0.00021643,2]
[364921532,1749300656353,-430.0,0.00021643,2]
[364921533,1749300656364,-609.82,0.00021643,2]
[364921534,1749300656373,-797.01,0.00021643,2]
[364921535,1749300656384,-440.0,0.00021643,2]
[364921536,1749300656394,-3300.67,0.00021643,2]
[364921537,1749300656404,-440.0,0.00021643,2]
[364921538,1749300656415,-440.0,0.00021643,2]
[364921539,1749300656426,-440.0,0.00021643,2]
[364921540,1749300656437,-440.0,0.00021643,2]
[364921541,1749300656446,-440.0,0.00021643,2]
[364921542,1749300656457,-533.74,0.00021643,2]
[364921543,1749300656466,-1870.46,0.00021643,2]
[364921544,1749300656476,-1404.67,0.00021643,2]
[364921545,1749300656487,-2939.08,0.00021643,2]
[364921546,1749300656496,-440.0,0.00021643,2]
[364921547,1749300656506,-1000.0,0.00021695,2]
[364921548,1749300656515,-709.0,0.00021771,2]
[364921549,1749300656526,-2225.0,0.00021771,2]
[364921550,1749300656536,-405.0,0.00021771,2]
[364921551,1749300656551,-1844.80616247,0.00021797,6]
[364921552,1749300656562,-1688.0,0.00021808,2]
[364921553,1749300656575,-207.4,0.00021808,2]
[364921554,1749300656585,-1750.456,0.00021863,2]
[364921555,1749300656596,-508.53585471,0.00021885,2]
[364921556,1749300656605,-156.0,0.000219,2]
[364921557,1749300656616,-500.0,0.00021901,2]
[364921558,1749300656626,-440.0,0.00021917,2]
[364921559,1749300656636,-440.0,0.00021917,2]
[364921560,1749300656648,-440.0,0.00021917,2]
[364921561,1749300656658,-440.0,0.00021917,2]
[364921562,1749300656668,-440.0,0.00021917,2]
[364921563,1749300656678,-440.0,0.00021917,2]
[364921564,1749300656687,-440.0,0.00021917,2]
[364921565,1749300656697,-440.0,0.00021917,2]
[364921566,1749300656709,-490.27,0.00021917,2]
[364921567,1749300656719,-440.0,0.00021917,2]
[364921568,1749300656728,-795.29,0.00021917,2]
[364921569,1749300656738,-1214.15,0.00021917,2]
[364921570,1749300656748,-440.0,0.00021917,2]
[364921571,1749300656759,-517.56,0.00021917,2]
[364921572,1749300656769,-400.0,0.00021917,2]
[364921573,1749300656779,-400.0,0.00021917,2]
[364921574,1749300656788,-400.0,0.00021917,2]
[364921575,1749300656799,-400.0,0.00021917,2]
[364921576,1749300656809,-391.23862199,0.00021917,2]
[364921577,1749300656821,-440.0,0.00021917,2]
[364921578,1749300656831,-584.65,0.00021917,2]
[364921579,1749300656841,-1313.55,0.00021917,2]
[364921580,1749300656854,-440.0,0.00021917,2]
[364921581,1749300656963,-440.0,0.00021917,2]
[364921582,1749300656974,-576.42,0.00021917,2]
[364921583,1749300656984,-440.0,0.00021917,2]
[364921584,1749300656994,-440.0,0.00021917,2]
[364921585,1749300657004,-440.0,0.00021917,2]
[364921586,1749300657014,-3803.52,0.00021917,2]
[364921587,1749300657024,-440.0,0.00021917,2]
[364921588,1749300657034,-440.0,0.00021917,2]
[364921589,1749300657043,-440.0,0.00021917,2]
[364921590,1749300657053,-1280.59,0.00021917,2]
[364921591,1749300657063,-498.0,0.00021917,2]
[364921592,1749300657074,-440.0,0.00021917,2]
[364921593,1749300657083,-440.0,0.00021917,2]
[364921594,1749300657093,-500.0,0.00021917,2]
[364921595,1749300657103,-501.42,0.00021917,2]
[364921596,1749300657113,-708.18,0.00021917,2]
[364921597,1749300657122,-440.0,0.00021917,2]
[364921598,1749300657132,-2486.9,0.00021917,2]
[364921599,1749300657142,-1293.92,0.00021917,2]
[364921600,1749300657151,-440.0,0.00021917,2]
[364921601,1749300657160,-440.0,0.00021917,2]
[364921602,1749300657170,-861.56,0.00021917,2]
[364921603,1749300657179,-500.0,0.00021917,2]
[364921604,1749300657189,-440.0,0.00021917,2]
[364921605,1749300657199,-568.04,0.00021917,2]
[364921606,1749300657209,-440.0,0.00021917,2]
[364921607,1749300657218,-151.0,0.00021917,2]
[364921608,1749300657228,-500.0,0.00021917,2]
[364921609,1749300657237,-500.0,0.00021917,2]
[364921610,1749300657247,-440.0,0.00021917,2]
[364921611,1749300657257,-440.0,0.00021917,2]
[364921612,1749300657266,-9931.75,0.00021917,2]
[364921613,1749300657276,-3453.14,0.00021917,2]
[364921614,1749300657286,-440.0,0.00021917,2]
[364921615,1749300657296,-440.0,0.00021917,2]
[364921616,1749300657305,-3871.85,0.00021917,2]
[364921617,1749300657315,-3264.02,0.00021917,2]
[364921618,1749300657325,-609.82,0.00021917,2]
[364921619,1749300657335,-797.01,0.00021917,2]
[364921620,1749300657345,-440.0,0.00021917,2]
[364921621,1749300657355,-3300.67,0.00021917,2]
[364921622,1749300657365,-440.0,0.00021917,2]
[364921623,1749300657375,-440.0,0.00021917,2]
[364921624,1749300657385,-327.2,0.00021917,2]
[364921625,1749300657395,-151.0,0.00021917,2]
[364921626,1749300657406,-440.0,0.00021917,2]
[364921627,1749300657416,-440.0,0.00021917,2]
[364921628,1749300657426,-533.74,0.00021917,2]
[364921629,1749300657436,-1870.46,0.00021917,2]
[364921630,1749300657445,-1404.67,0.00021917,2]
[364921631,1749300657456,-2939.08,0.00021917,2]
[364921632,1749300657466,-440.0,0.00021917,2]
[364921633,1749300657476,-920.61653262,0.00021918,2]
[364921634,1749300657486,-1844.80616247,0.00021969,6]
[364921635,1749300657497,-2000.0,0.00021972,2]
[364921636,1749300657507,-2000.0,0.00021972,2]
[364921637,1749300657518,-2000.0,0.00021972,2]
[364921638,1749300657528,-2000.0,0.00021972,2]
[364921639,1749300657538,-2000.0,0.00021972,2]
[364921640,1749300657550,-2000.0,0.00021972,2]
[364921641,1749300657560,-2000.0,0.00021972,2]
[364921642,1749300657574,-2000.0,0.00021972,2]
[364921643,1749300657585,-2000.0,0.00021972,2]
[364921644,1749300657596,-2000.0,0.00021972,2]
[364921645,1749300657607,-2000.0,0.00021972,2]
[364921646,1749300657616,-2000.0,0.00021972,2]
[364921647,1749300657626,-437.03958727,0.00021972,2]
[364921648,1749300657636,-108761.19,0.00022,7]
[364921649,1749300657649,-807.34,0.000221,7]
[364921650,1749300657659,-35795.23,0.000221,2]
[364921651,1749300657669,-1844.80616247,0.00022141,6]
[364921652,1749300657679,-1000.0,0.00022157,2]
[364921653,1749300657689,-1000.0,0.00022157,2]
[364921654,1749300657699,-1112.12485331,0.00022157,2]
[364921655,1749300657709,-1000.0,0.00022157,2]
[364921656,1749300657721,-1000.0,0.00022157,2]
[364921657,1749300657731,-1000.0,0.00022157,2]
[364921658,1749300657740,-1000.0,0.00022157,2]
[364921659,1749300657750,-1200.0,0.00022157,2]
[364921660,1749300657760,-500.0,0.00022157,2]
[364921661,1749300657770,-1000.0,0.00022157,2]
[364921662,1749300657780,-1001.98458429,0.00022181,2]
[364921663,1749300657790,-561.77688493,0.00022181,2]
[364921664,1749300657801,-1000.0,0.00022181,2]
[364921665,1749300657810,-1000.0,0.00022181,2]
[364921666,1749300657823,-500.0,0.00022181,2]
[364921667,1749300657833,-266.74294548,0.00022181,2]
[364921668,1749300657842,-440.0,0.00022191,2]
[364921669,1749300657852,-440.0,0.00022191,2]
[364921670,1749300657862,-440.0,0.00022191,2]
[364921671,1749300657872,-440.0,0.00022191,2]
[364921672,1749300657882,-273.35208697,0.00022191,2]
[364921673,1749300657892,-440.0,0.00022191,2]
[364921674,1749300657902,-795.29,0.00022191,2]
[364921675,1749300657911,-1214.15,0.00022191,2]
[364921676,1749300657920,-440.0,0.00022191,2]
[364921677,1749300657932,-517.56,0.00022191,2]
[364921678,1749300657941,-440.0,0.00022191,2]
[364921679,1749300657952,-584.65,0.00022191,2]
[364921680,1749300657962,-1313.55,0.00022191,2]
[364921681,1749300657973,-440.0,0.00022191,2]
[364921682,1749300657983,-382.25508162,0.00022191,2]
[364921683,1749300657993,-576.42,0.00022191,2]
[364921684,1749300658004,-420.70560515,0.00022191,2]
[364921685,1749300658015,-440.0,0.00022191,2]
[364921686,1749300658024,-440.0,0.00022191,2]
[364921687,1749300658034,-3803.52,0.00022191,2]
[364921688,1749300658044,-440.0,0.00022191,2]
[364921689,1749300658056,-440.0,0.00022191,2]
[364921690,1749300658066,-440.0,0.00022191,2]
[364921691,1749300658077,-1280.59,0.00022191,2]
[364921692,1749300658087,-498.0,0.00022191,2]
[364921693,1749300658097,-440.0,0.00022191,2]
[364921694,1749300658107,-440.0,0.00022191,2]
[364921695,1749300658117,-500.0,0.00022191,2]
[364921696,1749300658127,-501.42,0.00022191,2]
[364921697,1749300658137,-708.18,0.00022191,2]
[364921698,1749300658148,-440.0,0.00022191,2]
[364921699,1749300658157,-2486.9,0.00022191,2]
[364921700,1749300658167,-1293.92,0.00022191,2]
[364921701,1749300658177,-440.0,0.00022191,2]
[364921702,1749300658186,-440.0,0.00022191,2]
[364921703,1749300658196,-861.56,0.00022191,2]
[364921704,1749300658206,-440.0,0.00022191,2]
[364921705,1749300658216,-568.04,0.00022191,2]
[364921706,1749300658226,-440.0,0.00022191,2]
[364921707,1749300658235,-440.0,0.00022191,2]
[364921708,1749300658245,-440.0,0.00022191,2]
[364921709,1749300658348,-9931.75,0.00022191,2]
[364921710,1749300658360,-3453.14,0.00022191,2]
[364921711,1749300658371,-440.0,0.00022191,2]
[364921712,1749300658381,-3871.85,0.00022191,2]
[364921713,1749300658390,-3264.02,0.00022191,2]
[364921714,1749300658400,-609.82,0.00022191,2]
[364921715,1749300658410,-797.01,0.00022191,2]
[364921716,1749300658421,-3300.67,0.00022191,2]
[364921717,1749300658430,-440.0,0.00022191,2]
[364921718,1749300658440,-440.0,0.00022191,2]
[364921719,1749300658452,-440.0,0.00022191,2]
[364921720,1749300658462,-533.74,0.00022191,2]
[364921721,1749300658472,-1870.46,0.00022191,2]
[364921722,1749300658483,-1404.67,0.00022191,2]
[364921723,1749300658493,-2939.08,0.00022191,2]
[364921724,1749300658504,-440.0,0.00022191,2]
[364921725,1749300658515,-526.24,0.000222,2]
[364921726,1749300658525,-1509.98183395,0.00022243,2]
[364921727,1749300658535,-1582.58,0.000223,7]
[364921728,1749300658546,-5948.7,0.00022303,2]
[364921729,1749300658556,-1844.80616247,0.00022314,7]
[364921730,1749300658567,-440.0,0.00022465,2]
[364921731,1749300658579,-183.171984,0.00022465,7]
[364921732,1749300658589,-183.171984,0.00022465,7]
[364921733,1749300658599,-460.9,0.00022465,2]
[364921734,1749300658609,-440.0,0.00022465,2]
[364921735,1749300658621,-312.62,0.00022465,2]
[364921736,1749300658631,-440.0,0.00022465,2]
[364921737,1749300658641,-795.29,0.00022465,2]
[364921738,1749300658653,-1214.15,0.00022465,2]
[364921739,1749300658664,-440.0,0.00022465,2]
[364921740,1749300658674,-517.56,0.00022465,2]
[364921741,1749300658684,-440.0,0.00022465,2]
[364921742,1749300658694,-584.65,0.00022465,2]
[364921743,1749300658704,-1313.55,0.00022465,2]
[364921744,1749300658715,-440.0,0.00022465,2]
[364921745,1749300658726,-576.42,0.00022465,2]
[364921746,1749300658736,-440.0,0.00022465,2]
[364921747,1749300658746,-440.0,0.00022465,2]
[364921748,1749300658756,-3803.52,0.00022465,2]
[364921749,1749300658767,-440.0,0.00022465,2]
[364921750,1749300658777,-440.0,0.00022465,2]
[364921751,1749300658786,-440.0,0.00022465,2]
[364921752,1749300658798,-1280.59,0.00022465,2]
[364921753,1749300658808,-498.0,0.00022465,2]
[364921754,1749300658818,-440.0,0.00022465,2]
[364921755,1749300658828,-440.0,0.00022465,2]
[364921756,1749300658838,-500.0,0.00022465,2]
[364921757,1749300658848,-501.42,0.00022465,2]
[364921758,1749300658858,-708.18,0.00022465,2]
[364921759,1749300658868,-440.0,0.00022465,2]
[364921760,1749300658878,-2486.9,0.00022465,2]
[364921761,1749300658887,-1293.92,0.00022465,2]
[364921762,1749300658897,-440.0,0.00022465,2]
[364921763,1749300658907,-861.56,0.00022465,2]
[364921764,1749300658917,-500.0,0.00022465,2]
[364921765,1749300658927,-440.0,0.00022465,2]
[364921766,1749300658937,-568.04,0.00022465,2]
[364921767,1749300658948,-440.0,0.00022465,2]
[364921768,1749300658958,-440.0,0.00022465,2]
[364921769,1749300658968,-440.0,0.00022465,2]
[364921770,1749300658978,-9931.75,0.00022465,2]
[364921771,1749300658989,-3453.14,0.00022465,2]
[364921772,1749300658999,-336.82,0.00022465,2]
[364921773,1749300659009,-3871.85,0.00022465,2]
[364921774,1749300659019,-3264.02,0.00022465,2]
[364921775,1749300659029,-609.82,0.00022465,2]
[364921776,1749300659038,-797.01,0.00022465,2]
[364921777,1749300659049,-3300.67,0.00022465,2]
[364921778,1749300659058,-440.0,0.00022465,2]
[364921779,1749300659070,-440.0,0.00022465,2]
[364921780,1749300659080,-440.0,0.00022465,2]
[364921781,1749300659090,-533.74,0.00022465,2]
[364921782,1749300659099,-1870.46,0.00022465,2]
[364921783,1749300659109,-1404.67,0.00022465,2]
[364921784,1749300659119,-2939.08,0.00022465,2]
[364921785,1749300659129,-440.0,0.00022465,2]
[364921786,1749300659139,-1844.80616247,0.00022486,7]
[364921787,1749300659148,-1000.66520669,0.000225,2]
[364921788,1749300659158,-1210.366154,0.00022555,2]
[364921789,1749300659168,-1210.366154,0.00022555,2]
[364921790,1749300659178,-183.197886,0.00022555,7]
[364921791,1749300659188,-183.197886,0.00022555,7]
[364921792,1749300659198,-11478.4139172,0.00022603,2]
[364921793,1749300659207,-109507.78440443,0.00022603,2]
[364921794,1749300659217,-1844.80616247,0.00022659,7]
[364921795,1749300659227,-1000.0,0.00022685,5]
[364921796,1749300659238,-1500.0,0.00022705,2]
[364921797,1749300659248,-500.0,0.00022705,2]
[364921798,1749300659259,-1500.0,0.00022705,2]
[364921799,1749300659268,-500.0,0.00022705,2]
[364921800,1749300659278,-502.64960961,0.00022705,2]
[364921801,1749300659288,-1800.0,0.00022705,2]
[364921802,1749300659298,-1006.27683546,0.00022705,2]
[364921803,1749300659307,-504.42654874,0.00022729,2]
[364921804,1749300659317,-1500.0,0.00022729,2]
[364921805,1749300659328,-346.2,0.00022739,2]
[364921806,1749300659338,-440.0,0.00022739,2]
[364921807,1749300659347,-795.29,0.00022739,2]
[364921808,1749300659357,-1214.15,0.00022739,2]
[364921809,1749300659367,-534.6,0.00022739,2]
[364921810,1749300659378,-517.56,0.00022739,2]
[364921811,1749300659389,-440.0,0.00022739,2]
[364921812,1749300659399,-584.65,0.00022739,2]
[364921813,1749300659409,-1313.55,0.00022739,2]
[364921814,1749300659420,-440.0,0.00022739,2]
[364921815,1749300659431,-576.42,0.00022739,2]
[364921816,1749300659440,-440.0,0.00022739,2]
[364921817,1749300659450,-440.0,0.00022739,2]
[364921818,1749300659461,-3803.52,0.00022739,2]
[364921819,1749300659471,-440.0,0.00022739,2]
[364921820,1749300659480,-440.0,0.00022739,2]
[364921821,1749300659491,-440.0,0.00022739,2]
[364921822,1749300659502,-1280.59,0.00022739,2]
[364921823,1749300659512,-498.0,0.00022739,2]
[364921824,1749300659522,-440.0,0.00022739,2]
[364921825,1749300659532,-440.0,0.00022739,2]
[364921826,1749300659543,-500.0,0.00022739,2]
[364921827,1749300659646,-501.42,0.00022739,2]
[364921828,1749300659656,-708.18,0.00022739,2]
[364921829,1749300659666,-440.0,0.00022739,2]
[364921830,1749300659676,-2486.9,0.00022739,2]
[364921831,1749300659687,-1293.92,0.00022739,2]
[364921832,1749300659697,-440.0,0.00022739,2]
[364921833,1749300659707,-861.56,0.00022739,2]